fUST/lending_fUST_20240930
["ID","MTS","AMOUNT","RATE_DAILY","PERIOD"]
[339486340,1727631043671,-151.0,0.00014479,2]
[339486342,1727631043680,-151.0,0.00014479,2]
[339486344,1727631043689,-710.2259,0.00014479,2]
[339486346,1727631043698,-710.2259,0.00014479,2]
[339486348,1727631043707,-710.2259,0.00014479,2]
[339486350,1727631043716,-710.2259,0.00014479,2]
[339486352,1727631043725,-151.0,0.00014479,2]
[339486354,1727631043734,-151.0,0.00014479,2]
[339486356,1727631043744,-185.742748,0.00014479,2]
[339486358,1727631043753,-185.742748,0.00014479,2]
[339486360,1727631043762,-185.742748,0.00014479,2]
[339486362,1727631043771,-185.742748,0.00014479,2]
[339486364,1727631043780,-1961.822573,0.00014479,2]
[339486366,1727631043789,-1961.822573,0.00014479,2]
[339486368,1727631043800,-1961.822573,0.00014479,2]
[339486370,1727631043811,-1961.822573,0.00014479,2]
[339486372,1727631043820,-151.0,0.00014479,2]
[339486374,1727631043829,-205.662547,0.00014479,2]
[339486376,1727631043838,-161.083481,0.00014479,2]
[339486378,1727631043849,-161.083481,0.00014479,2]
[339486380,1727631043858,-587.535755,0.00014479,2]
[339486382,1727631043867,-587.535755,0.00014479,2]
[339486384,1727631043877,-587.535755,0.00014479,2]
[339486386,1727631043886,-587.535755,0.00014479,2]
[339486388,1727631043895,-174.079395,0.00014479,2]
[339486390,1727631043904,-174.079395,0.00014479,2]
[339486392,1727631043913,-151.0,0.00014479,2]
[339486394,1727631043922,-499.193232,0.00014479,2]
[339486396,1727631043931,-499.193232,0.00014479,2]
[339486398,1727631043940,-151.0,0.00014479,2]
[339486399,1727631043949,-184.812923,0.00014479,2]
[339486401,1727631043959,-184.812923,0.00014479,2]
[339486403,1727631043968,-6197.850849,0.00014479,2]
[339486405,1727631043977,-487.66259,0.00014479,2]
[339486408,1727631043988,-6197.850849,0.00014479,2]
[339486410,1727631043997,-487.66259,0.00014479,2]
[339486412,1727631044007,-151.0,0.00014479,2]
[339486414,1727631044016,-151.0,0.00014479,2]
[339486416,1727631044025,-1714.887894,0.00014479,2]
[339486418,1727631044034,-1714.887894,0.00014479,2]
[339486420,1727631044043,-275.468028,0.00014479,2]
[339486422,1727631044054,-1000.0,0.00014479,2]
[339486424,1727631044064,-275.468028,0.00014479,2]
[339486426,1727631044075,-613.923136,0.00014479,2]
[339486428,1727631044085,-167.483486,0.00014479,2]
[339486430,1727631044096,-613.923136,0.00014479,2]
[339486432,1727631044106,-167.483486,0.00014479,2]
[339486434,1727631044116,-1000.0,0.00014486,2]
[339486436,1727631044127,-1113.14281745,0.00014486,2]
[339486438,1727631044137,-1000.0,0.00014487,2]
[339486440,1727631044147,-30000.0,0.00014488,2]
[339486442,1727631044158,-260.375573,0.00014488,2]
[339486444,1727631044167,-260.375573,0.00014488,2]
[339486446,1727631044176,-3028.199878,0.00014488,2]
[339486448,1727631044186,-3028.199878,0.00014488,2]
[339486450,1727631044195,-343.802464,0.00014488,2]
[339486452,1727631044205,-343.802464,0.00014488,2]
[339486455,1727631044217,-159.948508,0.00014488,2]
[339486457,1727631044228,-159.948508,0.00014488,2]
[339486459,1727631044238,-285.356331,0.00014488,2]
[339486461,1727631044248,-174.079395,0.00014488,2]
[339486463,1727631044259,-174.079395,0.00014488,2]
[339486465,1727631044269,-151.0,0.00014488,2]
[339486467,1727631044278,-499.193232,0.00014488,2]
[339486469,1727631044287,-499.193232,0.00014488,2]
[339486471,1727631044296,-151.0,0.00014488,2]
[339486473,1727631044306,-184.812923,0.00014488,2]
[339486475,1727631044318,-184.812923,0.00014488,2]
[339486477,1727631044328,-1924.53097239,0.00014488,2]
[339486534,1727631044857,-4273.31987661,0.00014488,2]
[339486536,1727631044866,-487.66259,0.00014488,2]
[339486538,1727631044877,-3389.06948737,0.00014488,2]
[339486540,1727631044891,-2808.78136163,0.00014488,2]
[339486542,1727631044900,-487.66259,0.00014488,2]
[339486544,1727631044910,-151.0,0.00014488,2]
[339486546,1727631044919,-277.813328,0.00014488,2]
[339486548,1727631044929,-1714.887894,0.00014488,2]
[339486550,1727631044940,-1714.887894,0.00014488,2]
[339486552,1727631044950,-275.468028,0.00014488,2]
[339486554,1727631044960,-275.468028,0.00014488,2]
[339486556,1727631044969,-151.0,0.00014488,2]
[339486558,1727631044979,-613.923136,0.00014488,2]
[339486560,1727631044988,-167.483486,0.00014488,2]
[339486562,1727631044998,-613.923136,0.00014488,2]
[339486564,1727631045009,-167.483486,0.00014488,2]
[339486566,1727631045018,-151.0,0.00014489,2]
[339486568,1727631045028,-151.0,0.00014489,2]
[339486570,1727631045038,-151.0,0.00014489,2]
[339486572,1727631045047,-266.957678,0.00014489,2]
[339486574,1727631045057,-266.957678,0.00014489,2]
[339486576,1727631045066,-151.0,0.00014489,2]
[339486578,1727631045077,-151.0,0.00014489,2]
[339486581,1727631045087,-151.0,0.00014489,2]
[339486583,1727631045096,-151.0,0.00014489,2]
[339486584,1727631045106,-239.325384,0.00014489,2]
[339486586,1727631045116,-151.0,0.00014489,2]
[339486588,1727631045125,-151.0,0.00014489,2]
[339486590,1727631045135,-151.0,0.00014489,2]
[339486592,1727631045145,-151.0,0.00014489,2]
[339486594,1727631045154,-161.083481,0.00014489,2]
[339486597,1727631045164,-161.083481,0.00014489,2]
[339486598,1727631045173,-2000.0,0.000145,2]
[339486600,1727631045183,-150.112233,0.000145,2]
[339486602,1727631045193,-150.112233,0.000145,2]
[339486624,1727631045391,-150.112233,0.000145,2]
[339486626,1727631045401,-1000.0,0.00014506,2]
[339486629,1727631045411,-1000.0,0.00014508,2]
[339486631,1727631045421,-184.27800807,0.00014509,2]
[339486739,1727631046388,-300.0,0.00014124,2]
[339486741,1727631046398,-6.24798982,0.00014509,2]
[339486746,1727631046433,-809.47400211,0.00014509,2]
[339486748,1727631046442,-1000.0,0.00014519,2]
[339486749,1727631046451,-1000.0,0.00014546,2]
[339486751,1727631046460,-1000.0,0.00014547,2]
[339486753,1727631046470,-1000.0,0.00014567,2]
[339486755,1727631046479,-151.0,0.00014573,2]
[339486757,1727631046488,-151.0,0.00014573,2]
[339486759,1727631046498,-151.0,0.00014573,2]
[339486761,1727631046507,-266.957678,0.00014573,2]
[339486763,1727631046517,-266.957678,0.00014573,2]
[339486764,1727631046526,-820.79845,0.00014573,2]
[339486766,1727631046535,-820.79845,0.00014573,2]
[339486768,1727631046544,-151.0,0.00014578,2]
[339486770,1727631046554,-151.0,0.00014578,2]
[339486772,1727631046563,-304.207601,0.00014578,2]
[339486774,1727631046572,-304.207601,0.00014578,2]
[339486775,1727631046581,-151.0,0.00014579,2]
[339486777,1727631046591,-283.432533,0.00014579,2]
[339486779,1727631046600,-137.47546893,0.00014579,2]
[339486782,1727631046612,-13.52453107,0.00014579,2]
[339486783,1727631046621,-151.0,0.00014579,2]
[339486785,1727631046630,-151.0,0.00014579,2]
[339486787,1727631046639,-151.0,0.00014579,2]
[339486789,1727631046649,-151.0,0.00014579,2]
[339486791,1727631046658,-151.0,0.00014579,2]
[339486793,1727631046667,-151.0,0.00014579,2]
[339486795,1727631046676,-151.0,0.00014579,2]
[339486797,1727631046685,-304.207601,0.00014579,2]
[339486799,1727631046695,-202.74100977,0.00014579,2]
[339486900,1727631047748,-101.46659123,0.00014579,2]
[339486902,1727631047758,-304.207601,0.00014579,2]
[339486904,1727631047768,-304.207601,0.00014579,2]
[339486906,1727631047777,-304.207601,0.00014579,2]
[339486908,1727631047787,-304.207601,0.00014579,2]
[339486910,1727631047798,-266.957678,0.00014579,2]
[339486912,1727631047812,-266.957678,0.00014579,2]
[339486913,1727631047823,-266.957678,0.00014579,2]
[339486915,1727631047833,-266.957678,0.00014579,2]
[339486917,1727631047842,-266.957678,0.00014579,2]
[339486919,1727631047852,-266.957678,0.00014579,2]
[339486921,1727631047861,-456.30348601,0.00014579,2]
[339486923,1727631047873,-364.49496399,0.00014579,2]
[339486925,1727631047883,-820.79845,0.00014579,2]
[339486927,1727631047892,-820.79845,0.00014579,2]
[339486929,1727631047901,-820.79845,0.00014579,2]
[339486930,1727631047910,-626.73424922,0.00014579,2]
[339486933,1727631047922,-194.06420078,0.00014579,2]
[339486935,1727631047931,-520.20953304,0.00014579,2]
[339486937,1727631047943,-300.58891696,0.00014579,2]
[339486938,1727631047952,-833.747244,0.00014579,2]
[339486940,1727631047962,-833.747244,0.00014579,2]
[339486942,1727631047971,-205.21970498,0.00014579,2]
[339490727,1727631092328,1000.0,0.00014025,2]
[339490792,1727631096170,160.4532994,0.00013215,2]
[339490908,1727631127964,17641.82251066,0.00014028,2]
[339491007,1727631178251,1000.0,0.00014025,2]
[339491008,1727631185637,255.112104,0.00013699,2]
[339491009,1727631188410,3000.0,0.0001314,2]
[339491010,1727631190927,2200.46597566,0.00014024,2]
[339491012,1727631195528,1577.700299,0.00013699,2]
[339491013,1727631199728,87408.6828193,0.00014113,2]
[339491014,1727631201836,67763.0372985,0.00014113,2]
[339491017,1727631268197,-300.0,0.00014122,2]
[339491018,1727631268234,-300.0,0.00014122,2]
[339491019,1727631268269,-166.9975051,0.00014123,2]
[339491020,1727631268300,-500.0,0.00014123,2]
[339491021,1727631268332,-493.3284079,0.00014123,2]
[339491022,1727631268366,-500.0,0.00014123,2]
[339491023,1727631268399,-436.50198882,0.00014123,2]
[339491024,1727631268433,-500.0,0.00014123,2]
[339491025,1727631268461,-500.0,0.00014123,2]
[339491026,1727631268486,-500.0,0.00014123,2]
[339491027,1727631268511,-500.0,0.00014123,2]
[339491028,1727631268890,-500.0,0.00014123,2]
[339491029,1727631268951,-500.0,0.00014123,2]
[339491030,1727631268977,-479.14738196,0.00014123,2]
[339491031,1727631269002,-500.0,0.00014123,2]
[339491032,1727631269030,-500.0,0.00014123,2]
[339491033,1727631269057,-500.0,0.00014123,2]
[339491034,1727631269083,-500.0,0.00014123,2]
[339491035,1727631269108,-500.0,0.00014123,2]
[339491036,1727631269133,-500.0,0.00014123,2]
[339491037,1727631269159,-500.0,0.00014123,2]
[339491038,1727631269184,-500.0,0.00014123,2]
[339491039,1727631269212,-500.0,0.00014123,2]
[339491040,1727631269236,-500.0,0.00014123,2]
[339491041,1727631269263,-500.0,0.00014123,2]
[339491042,1727631269289,-216.58193231,0.00014123,2]
[339491043,1727631269314,-500.0,0.00014123,2]
[339491044,1727631269341,-500.0,0.00014123,2]
[339491045,1727631269365,-500.0,0.00014123,2]
[339491046,1727631269391,-500.0,0.00014123,2]
[339491047,1727631269417,-500.0,0.00014123,2]
[339491048,1727631269443,-500.0,0.00014123,2]
[339491049,1727631269468,-107.44278391,0.00014123,2]
[339491050,1727631279813,24900.0,0.00013136,2]
[339491052,1727631285377,1000.0,0.00014023,2]
[339491055,1727631377983,405.18639234,0.00014023,2]
[339491545,1727631501387,95201.8730214,0.00014111,2]
[339491560,1727631504784,5782.57098053,0.00014111,2]
[339491606,1727631517869,548.95197401,0.00014118,2]
[339491607,1727631517920,500.0,0.00014118,2]
[339491609,1727631518563,415.55139217,0.00014118,2]
[339491610,1727631518595,345.32988553,0.00014118,2]
[339491611,1727631518675,500.0,0.00014118,2]
[339491612,1727631518804,500.0,0.00014118,2]
[339491613,1727631520148,500.0,0.00014118,2]
[339491614,1727631520186,500.0,0.00014118,2]
[339491615,1727631520236,500.0,0.00014118,2]
[339491616,1727631520326,500.0,0.00014118,2]
[339491617,1727631520364,1435.58447668,0.00014118,2]
[339491618,1727631520484,500.0,0.00014118,2]
[339491619,1727631520522,1435.58447668,0.00014118,2]
[339491620,1727631520556,500.0,0.00014118,2]
[339491622,1727631520596,500.0,0.00014118,2]
[339491623,1727631520626,500.0,0.00014118,2]
[339491624,1727631520727,500.0,0.00014118,2]
[339491626,1727631520771,1435.58447668,0.00014118,2]
[339491627,1727631520833,500.0,0.00014118,2]
[339491628,1727631520867,500.0,0.00014118,2]
[339491629,1727631520904,1435.58447668,0.00014118,2]
[339491630,1727631520946,500.0,0.00014118,2]
[339491631,1727631520987,500.0,0.00014118,2]
[339491632,1727631521020,500.0,0.00014118,2]
[339491633,1727631521056,500.0,0.00014118,2]
[339491634,1727631521099,1435.58447668,0.00014118,2]
[339491635,1727631521138,500.0,0.00014118,2]
[339491636,1727631521173,1435.58447668,0.00014118,2]
[339491637,1727631521203,500.0,0.00014118,2]
[339491638,1727631521238,1435.58447668,0.00014118,2]
[339491639,1727631521272,500.0,0.00014118,2]
[339491640,1727631521332,500.0,0.00014118,2]
[339491641,1727631521363,500.0,0.00014118,2]
[339491642,1727631521396,500.0,0.00014118,2]
[339491643,1727631521431,1435.58447668,0.00014118,2]
[339491645,1727631521465,500.0,0.00014118,2]
[339491646,1727631521506,500.0,0.00014118,2]
[339491647,1727631521536,1435.58447668,0.00014118,2]
[339491648,1727631521569,500.0,0.00014118,2]
[339491649,1727631521601,1435.58447668,0.00014118,2]
[339491650,1727631521644,197.73286837,0.00014118,2]
[339491651,1727631521678,1435.58447668,0.00014118,2]
[339491652,1727631521729,1435.58447668,0.00014118,2]
[339491653,1727631521762,500.0,0.00014118,2]
[339491654,1727631521797,1435.58447668,0.00014118,2]
[339491655,1727631521836,1435.58447668,0.00014118,2]
[339491656,1727631521880,1435.58447668,0.00014118,2]
[339491657,1727631521919,1435.58447668,0.00014118,2]
[339491658,1727631521968,1435.58447668,0.00014118,2]
[339491659,1727631522013,1435.58447668,0.00014118,2]
[339491660,1727631522061,1435.58447668,0.00014118,2]
[339491662,1727631522100,1435.58447668,0.00014118,2]
[339491663,1727631522139,1435.58447668,0.00014118,2]
[339491664,1727631522182,1435.58447668,0.00014118,2]
[339491665,1727631522222,1435.58447668,0.00014118,2]
[339491666,1727631522268,1435.58447668,0.00014118,2]
[339491669,1727631522523,1435.58447668,0.00014118,2]
[339491670,1727631522565,1435.58447668,0.00014118,2]
[339491673,1727631522605,1435.58447668,0.00014118,2]
[339491674,1727631522650,1435.58447668,0.00014118,2]
[339491675,1727631522692,1435.58447668,0.00014118,2]
[339491677,1727631522763,1435.58447668,0.00014118,2]
[339491678,1727631522820,1435.58447668,0.00014118,2]
[339491680,1727631522861,1435.58447668,0.00014118,2]
[339491682,1727631522903,1435.58447668,0.00014118,2]
[339491684,1727631522945,1435.58447668,0.00014118,2]
[339491685,1727631522983,1435.58447668,0.00014118,2]
[339491687,1727631523044,1435.58447668,0.00014118,2]
[339491688,1727631523082,1435.58447668,0.00014118,2]
[339491689,1727631523114,1435.58447668,0.00014118,2]
[339491691,1727631523154,1435.58447668,0.00014118,2]
[339491693,1727631523197,1435.58447668,0.00014118,2]
[339491694,1727631523238,1435.58447668,0.00014118,2]
[339491696,1727631523271,1435.58447668,0.00014118,2]
[339491697,1727631523312,1435.58447668,0.00014118,2]
[339491698,1727631523352,1435.58447668,0.00014118,2]
[339491699,1727631523435,1435.58447668,0.00014118,2]
[339491714,1727631525840,166.666668,0.00013223,2]
[339491715,1727631526047,166.666668,0.00013568,2]
[339491717,1727631526264,166.666668,0.00013912,2]
[339491740,1727631531260,500.0,0.00014118,2]
[339491741,1727631531299,500.0,0.00014118,2]
[339491742,1727631531341,500.0,0.00014118,2]
[339491743,1727631531389,500.0,0.00014118,2]
[339491745,1727631531456,500.0,0.00014118,2]
[339491746,1727631531494,1353.23856612,0.00014073,2]
[339491747,1727631531525,500.0,0.00014118,2]
[339491748,1727631531567,500.0,0.00014118,2]
[339491749,1727631531610,500.0,0.00014118,2]
[339491750,1727631531652,500.0,0.00014118,2]
[339491751,1727631531686,500.0,0.00014118,2]
[339491752,1727631531720,474.95968771,0.00014118,2]
[339491754,1727631531758,500.0,0.00014118,2]
[339491756,1727631531867,500.0,0.00014118,2]
[339491757,1727631531919,500.0,0.00014118,2]
[339491758,1727631532032,500.0,0.00014118,2]
[339491760,1727631532077,500.0,0.00014118,2]
[339491762,1727631532142,500.0,0.00014118,2]
[339491804,1727631540754,300.0,0.00014118,2]
[339491806,1727631543050,300.0,0.00014118,2]
[339491818,1727631545716,845.61936656,0.00014118,2]
[339491819,1727631545759,845.61936656,0.00014118,2]
[339491821,1727631545802,845.61936656,0.00014118,2]
[339491823,1727631545842,845.61936656,0.00014118,2]
[339491824,1727631545884,845.61936656,0.00014118,2]
[339491825,1727631545929,845.61936656,0.00014118,2]
[339491828,1727631545987,845.61936656,0.00014118,2]
[339491829,1727631546032,845.61936656,0.00014118,2]
[339491831,1727631546070,845.61936656,0.00014118,2]
[339491832,1727631546109,845.61936656,0.00014118,2]
[339491833,1727631546150,845.61936656,0.00014118,2]
[339491834,1727631546184,845.61936656,0.00014118,2]
[339491835,1727631546217,845.61936656,0.00014118,2]
[339491837,1727631546258,845.61936656,0.00014118,2]
[339491838,1727631546302,845.61936656,0.00014118,2]
[339491839,1727631546339,845.61936656,0.00014118,2]
[339491841,1727631546383,845.61936656,0.00014118,2]
[339491842,1727631546422,845.61936656,0.00014118,2]
[339491844,1727631546471,845.61936656,0.00014118,2]
[339491845,1727631546511,845.61936656,0.00014118,2]
[339491847,1727631546564,845.61936656,0.00014118,2]
[339491848,1727631546604,845.61936656,0.00014118,2]
[339491849,1727631546646,845.61936656,0.00014118,2]
[339491850,1727631546692,845.61936656,0.00014118,2]
[339491852,1727631546724,845.61936656,0.00014118,2]
[339491853,1727631546761,845.61936656,0.00014118,2]
[339491854,1727631546800,845.61936656,0.00014118,2]
[339491855,1727631546835,845.61936656,0.00014118,2]
[339491857,1727631546873,845.61936656,0.00014118,2]
[339491858,1727631546910,845.61936656,0.00014118,2]
[339491860,1727631546972,845.61936656,0.00014118,2]
[339491862,1727631547088,845.61936656,0.00014118,2]
[339491863,1727631547141,845.61936656,0.00014118,2]
[339491865,1727631547180,845.61936656,0.00014118,2]
[339491867,1727631547359,845.61936656,0.00014118,2]
[339491868,1727631547400,845.61936656,0.00014118,2]
[339491870,1727631547456,845.61936656,0.00014118,2]
[339491872,1727631547556,845.61936656,0.00014118,2]
[339491873,1727631547612,845.61936656,0.00014118,2]
[339491874,1727631547662,845.61936656,0.00014118,2]
[339491876,1727631547744,845.61936656,0.00014118,2]
[339491878,1727631547821,845.61936656,0.00014118,2]
[339491879,1727631547864,845.61936656,0.00014118,2]
[339491884,1727631548442,845.61936656,0.00014118,2]
[339491926,1727631557986,858.24055114,0.00014118,2]
[339491927,1727631558025,858.24055114,0.00014118,2]
[339491928,1727631558067,858.24055114,0.00014118,2]
[339491929,1727631558115,858.24055114,0.00014118,2]
[339491930,1727631558150,858.24055114,0.00014118,2]
[339491932,1727631558191,858.24055114,0.00014118,2]
[339491933,1727631558230,858.24055114,0.00014118,2]
[339491934,1727631558275,858.24055114,0.00014118,2]
[339491935,1727631558312,858.24055114,0.00014118,2]
[339491936,1727631558349,858.24055114,0.00014118,2]
[339491937,1727631558390,858.24055114,0.00014118,2]
[339491938,1727631558426,858.24055114,0.00014118,2]
[339491939,1727631558463,858.24055114,0.00014118,2]
[339491941,1727631558827,858.24055114,0.00014118,2]
[339491943,1727631558880,858.24055114,0.00014118,2]
[339491944,1727631558924,858.24055114,0.00014118,2]
[339491945,1727631558964,858.24055114,0.00014118,2]
[339491946,1727631559002,858.24055114,0.00014118,2]
[339491947,1727631559045,858.24055114,0.00014118,2]
[339491948,1727631559080,858.24055114,0.00014118,2]
[339491950,1727631559149,858.24055114,0.00014118,2]
[339491951,1727631559201,858.24055114,0.00014118,2]
[339491952,1727631559234,858.24055114,0.00014118,2]
[339491953,1727631559266,858.24055114,0.00014118,2]
[339491954,1727631559308,858.24055114,0.00014118,2]
[339491955,1727631559340,858.24055114,0.00014118,2]
[339492099,1727631576239,500.0,0.00014118,2]
[339492101,1727631576360,218.80651211,0.00014118,2]
[339492239,1727631600721,300.0,0.00014118,2]
[339492277,1727631603018,300.0,0.00014118,2]
[339492763,1727631660805,300.0,0.00014118,2]
[339492779,1727631662942,300.0,0.00014118,2]
[339493186,1727631720656,300.0,0.00014118,2]
[339493207,1727631723500,300.0,0.00014118,2]
[339493599,1727631772878,-2082.30114657,0.00014119,2]
[339493600,1727631772903,-190403.746043,0.00014119,2]
[339493601,1727631772929,-11565.1419611,0.00014119,2]
[339493603,1727631772954,-492.47907,0.00014128,2]
[339493604,1727631772981,-492.47907,0.00014128,2]
[339493605,1727631773006,-151.0,0.00014128,2]
[339493606,1727631773035,-151.0,0.00014128,2]
[339493607,1727631773062,-95201.8730214,0.00014129,2]
[339493608,1727631773089,-17347.7129416,0.00014129,2]
[339493609,1727631773115,-5782.57098053,0.00014129,2]
[339493612,1727631773423,-5782.57098053,0.00014135,2]
[339493649,1727631779476,-118622.12478527,0.00014139,2]
[339493829,1727631798286,1051.800199,0.00013699,2]
[339494010,1727631812947,180.14737831,0.00014118,2]
[339494011,1727631812978,235.77690541,0.00014118,2]
[339494013,1727631813008,500.0,0.00014118,2]
[339494014,1727631813040,154.2942215,0.00014118,2]
[339494016,1727631813077,500.0,0.00014118,2]
[339494018,1727631813117,500.0,0.00014118,2]
[339494020,1727631813154,500.0,0.00014118,2]
[339494022,1727631813184,570.61857516,0.00014118,2]
[339494023,1727631813228,500.0,0.00014118,2]
[339494024,1727631813259,500.0,0.00014118,2]
[339494026,1727631813291,500.0,0.00014118,2]
[339494028,1727631813325,500.0,0.00014118,2]
[339494030,1727631813361,419.04740451,0.00014118,2]
[339494032,1727631813412,500.0,0.00014118,2]
[339494034,1727631813448,232.46013684,0.00014118,2]
[339494037,1727631813572,500.0,0.00014118,2]
[339494040,1727631813648,500.0,0.00014118,2]
[339494233,1727631831917,861.06648174,0.00014118,2]
[339494235,1727631831968,861.06648174,0.00014118,2]
[339494236,1727631832005,861.06648174,0.00014118,2]
[339494238,1727631832038,861.06648174,0.00014118,2]
[339494239,1727631832073,861.06648174,0.00014118,2]
[339494241,1727631832111,861.06648174,0.00014118,2]
[339494242,1727631832149,861.06648174,0.00014118,2]
[339494243,1727631832185,861.06648174,0.00014118,2]
[339494250,1727631832599,861.06648174,0.00014118,2]
[339494252,1727631832632,861.06648174,0.00014118,2]
[339494254,1727631832668,861.06648174,0.00014118,2]
[339494255,1727631832704,861.06648174,0.00014118,2]
[339494256,1727631832735,861.06648174,0.00014118,2]
[339494258,1727631832804,861.06648174,0.00014118,2]
[339494259,1727631832876,861.06648174,0.00014118,2]
[339494261,1727631832913,861.06648174,0.00014118,2]
[339494263,1727631832943,861.06648174,0.00014118,2]
[339494265,1727631832978,861.06648174,0.00014118,2]
[339494266,1727631833012,861.06648174,0.00014118,2]
[339494267,1727631833045,861.06648174,0.00014118,2]
[339494269,1727631833075,861.06648174,0.00014118,2]
[339494270,1727631833142,861.06648174,0.00014118,2]
[339494272,1727631833182,861.06648174,0.00014118,2]
[339494274,1727631833214,861.06648174,0.00014118,2]
[339494276,1727631833305,861.06648174,0.00014118,2]
[339494277,1727631833336,861.06648174,0.00014118,2]
[339494278,1727631833370,861.06648174,0.00014118,2]
[339494279,1727631833409,861.06648174,0.00014118,2]
[339494280,1727631833456,861.06648174,0.00014118,2]
[339494282,1727631833521,861.06648174,0.00014118,2]
[339494283,1727631833577,861.06648174,0.00014118,2]
[339494284,1727631833604,-300.0,0.00014138,2]
[339494285,1727631833626,-11447.83630682,0.00014139,2]
[339494286,1727631833649,-492.47907,0.00014139,2]
[339494287,1727631833672,-492.47907,0.00014139,2]
[339494289,1727631833694,-151.0,0.00014139,2]
[339494290,1727631833719,-151.0,0.00014139,2]
[339494292,1727631833742,-234.59076379,0.00014145,2]
[339494293,1727631833765,-151.0,0.00014145,2]
[339494295,1727631833787,-151.0,0.00014145,2]
[339494296,1727631833809,-1840.448906,0.00014145,2]
[339494298,1727631833834,-1840.448906,0.00014145,2]
[339494299,1727631833856,-2221.304445,0.00014145,2]
[339494300,1727631833879,-2221.304445,0.00014145,2]
[339494301,1727631833901,-710.2259,0.00014145,2]
[339494303,1727631833925,-710.2259,0.00014145,2]
[339494304,1727631833948,-710.2259,0.00014145,2]
[339494305,1727631833972,-710.2259,0.00014145,2]
[339494306,1727631833995,-3158.490818,0.00014145,2]
[339494307,1727631834019,-3158.490818,0.00014145,2]
[339494309,1727631834044,-3158.490818,0.00014145,2]
[339494310,1727631834067,-3158.490818,0.00014145,2]
[339494312,1727631834097,861.06648174,0.00014118,2]
[339494396,1727631840723,300.0,0.00014145,2]
[339494426,1727631843742,300.0,0.00014145,2]
[339494447,1727631846151,-22297.0786527,0.00014146,2]
[339494448,1727631846176,-32138.09608095,0.00014146,2]
[339494554,1727631861272,381.50889094,0.00014118,2]
[339494556,1727631861309,500.0,0.00014118,2]
[339494557,1727631861346,594.40051154,0.00014118,2]
[339494559,1727631861378,503.68949075,0.00014118,2]
[339494563,1727631861697,968.69979195,0.00014118,2]
[339494565,1727631861729,500.0,0.00014118,2]
[339494566,1727631861790,500.0,0.00014118,2]
[339494567,1727631861825,500.0,0.00014118,2]
[339494568,1727631861888,489.5470898,0.00014118,2]
[339494570,1727631861919,500.0,0.00014118,2]
[339494572,1727631862031,968.69979195,0.00014118,2]
[339494574,1727631862068,500.0,0.00014118,2]
[339494575,1727631862107,500.0,0.00014118,2]
[339494576,1727631862137,268.14875251,0.00014118,2]
[339494593,1727631863962,421.12264018,0.00014118,2]
[339494595,1727631864008,968.69979195,0.00014118,2]
[339494596,1727631864087,968.69979195,0.00014118,2]
[339494601,1727631864365,968.69979195,0.00014118,2]
[339494607,1727631864835,968.69979195,0.00014118,2]
[339494612,1727631865164,968.69979195,0.00014118,2]
[339494616,1727631865513,968.69979195,0.00014118,2]
[339494621,1727631865847,968.69979195,0.00014118,2]
[339494625,1727631866169,968.69979195,0.00014118,2]
[339494629,1727631866485,968.69979195,0.00014118,2]
[339494632,1727631866841,968.69979195,0.00014118,2]